[Event "RUS-ch Girls U21 2021"]
[Site "Loo"]
[Date "2021.04.21"]
[Round "1.1"]
[White "Shvedova, Alexandra"]
[Black "Shafigullina, Zarina"]
[Result "0-1"]
[ECO "B90"]
[WhiteElo "2000"]
[BlackElo "2293"]
[Annotator "ChessBase"]
[PlyCount "94"]
[EventDate "2021.04.21"]
[EventType "swiss"]
[EventCountry "RUS"]
[SourceTitle "playchess.com"]
[Source "ChessBase"]
[SourceQuality "1"]
[TimeControl "40/5400+30:1800+30"]

1. e4 {[%emt 0:00:00]} c5 {[%emt 0:00:00]} 2. Nf3 {[%emt 0:00:00]} d6 {[%emt 0:00:00]} 3. d4 {[%emt 0:00:00]} cxd4 {[%emt 0:00:00]} 4. Nxd4 {[%emt 0:00:00]} Nf6 {[%emt 0:00:00]} 5. Nc3 {[%emt 0:00:00]} a6 {[%emt 0:00:00]} 6. Rg1 {[%emt 0:00:07]} e5 {[%emt 0:03:11]} 7. Nb3 {[%emt 0:00:07]} b5 {[%emt 0:02:58]} 8. Bg5 {[%emt 0:10:22]} Nbd7 9. g4 {[%emt 0:16:04]} h6 {[%emt 0:07:12]} 10. Be3 {[%emt 0:01:32]} Bb7 {[%emt 0:00:39]} 11. Bg2 {[%emt 0:00:26]} Rc8 {[%emt 0:07:26]} 12. Nd5 {[%emt 0:06:17]} Nxd5 {[%emt 0:05:42]} 13. exd5 {[%emt 0:00:06]} Nf6 {[%emt 0:00:17]} 14. h3 Be7 {[%emt 0:11:40]} 15. Qd2 {[%emt 0:10:42]} Qc7 {[%emt 0:01:39]} 16. c3 {[%emt 0:04:41]} Bd8 17. Qd3 {[%emt 0:23:52]} Qc4 {[%emt 0:23:31]} 18. Qxc4 {[%emt 0:04:23]} bxc4 {[%emt 0:00:40]} 19. Nd2 {[%emt 0:00:05]} Bxd5 {[%emt 0:02:37]} 20. Bxd5 {[%emt 0:00:15]} Nxd5 {[%emt 0:00:19]} 21. Ne4 {[%emt 0:02:23]} Kd7 {[%emt 0:07:33]} 22. O-O-O {[%emt 0:01:31]} Ke6 23. Rd2 Be7 {[%emt 0:01:30]} 24. Nxd6 {[%emt 0:03:11]} Rc6 {[%emt 0:10:12]} 25. Nf5 {[%emt 0:03:28]} Bf6 {[%emt 0:03:49]} 26. Rgd1 {[%emt 0:00:25]} Rd8 {[%emt 0:00:05]} 27. Kc2 {[%emt 0:02:26]} Nxe3+ {[%emt 0:06:09]} 28. Nxe3 {[%emt 0:00:35]} Rxd2+ {[%emt 0:00:05]} 29. Rxd2 {[%emt 0:00:39]} Bg5 {[%emt 0:00:06]} 30. b3 {[%emt 0:01:15]} Bxe3 {[%emt 0:01:20]} 31. fxe3 {[%emt 0:00:05]} f5 {[%emt 0:00:12]} 32. gxf5+ {[%emt 0:09:27]} Kxf5 {[%emt 0:00:04]} 33. Rg2 {[%emt 0:00:52]} g5 {[%emt 0:00:04]} 34. Rg4 {[%emt 0:00:32]} e4 {[%emt 0:01:59]} 35. Rg2 {[%emt 0:00:35]} h5 {[%emt 0:01:36]} 36. Rf2+ {[%emt 0:00:17]} Ke5 {[%emt 0:00:18]} 37. Rg2 {[%emt 0:00:05]} Rg6 {[%emt 0:00:46]} 38. bxc4 g4 39. hxg4 {[%emt 0:01:00]} hxg4 {[%emt 0:00:20]} 40. Kd2 {[%emt 0:00:00]} g3 {[%emt 0:00:00]} 41. Ke1 {[%emt 0:05:02]} Kf5 {[%emt 0:02:12]} 42. Kf1 {[%emt 0:00:12]} Kg4 {[%emt 0:06:22]} 43. Rd2 {[%emt 0:02:47]} Kf3 {[%emt 0:01:59]} 44. c5 {[%emt 0:01:19]} Rg5 {[%emt 0:06:57]} 45. c6 {[%emt 0:01:20]} Rb5 {[%emt 0:01:45]} 46. Rd1 {[%emt 0:00:14]} g2+ {[%emt 0:00:25]} 47. Kg1 {[%emt 0:00:04]} Rh5 {[%emt 0:00:05]} 0-1

[Event "RUS-ch Girls U21 2021"]
[Site "Loo"]
[Date "2021.04.21"]
[Round "1.2"]
[White "Nasyrova, Ekaterina"]
[Black "Serditykh, Olesya"]
[Result "1-0"]
[ECO "A05"]
[WhiteElo "2273"]
[BlackElo "1961"]
[Annotator "ChessBase"]
[PlyCount "137"]
[EventDate "2021.04.21"]
[EventType "swiss"]
[EventCountry "RUS"]
[SourceTitle "playchess.com"]
[Source "ChessBase"]
[SourceQuality "1"]
[TimeControl "40/5400+30:1800+30"]

1. Nf3 {[%emt 0:00:00]} Nf6 {[%emt 0:00:00]} 2. c4 {[%emt 0:00:00]} e6 {[%emt 0:00:00]} 3. Nc3 {[%emt 0:00:00]} d5 {[%emt 0:00:00]} 4. e3 {[%emt 0:00:03]} b6 {[%emt 0:04:30]} 5. cxd5 {[%emt 0:02:31]} exd5 {[%emt 0:00:33]} 6. Bb5+ {[%emt 0:00:20]} c6 {[%emt 0:01:33]} 7. Bd3 {[%emt 0:01:38]} Bd6 {[%emt 0:03:35]} 8. O-O {[%emt 0:01:28]} O-O {[%emt 0:00:23]} 9. b3 {[%emt 0:02:04]} Bb7 {[%emt 0:07:44]} 10. Bb2 Nbd7 {[%emt 0:02:39]} 11. Bf5 {[%emt 0:08:18]} Re8 {[%emt 0:07:01]} 12. Rc1 {[%emt 0:05:30]} c5 {[%emt 0:10:09]} 13. d4 {[%emt 0:05:27]} a6 {[%emt 0:03:05]} 14. Na4 {[%emt 0:04:15]} c4 {[%emt 0:21:38]} 15. bxc4 {[%emt 0:27:15]} dxc4 {[%emt 0:00:14]} 16. Nc3 {[%emt 0:09:30]} b5 {[%emt 0:02:02]} 17. a3 {[%emt 0:01:16]} Nb6 {[%emt 0:03:57]} 18. Re1 {[%emt 0:00:49]} Qe7 {[%emt 0:04:29]} 19. e4 {[%emt 0:06:58]} Bf4 {[%emt 0:12:18]} 20. e5 {[%emt 0:12:58]} Nfd5 {[%emt 0:01:20]} 21. Rc2 {[%emt 0:04:57]} Nxc3 {[%emt 0:00:56]} 22. Bxc3 {[%emt 0:04:18]} Nd5 {[%emt 0:02:54]} 23. Bb2 {[%emt 0:00:57]} g6 {[%emt 0:02:18]} 24. Bh3 {[%emt 0:00:40]} Rad8 {[%emt 0:02:56]} 25. Qe2 {[%emt 0:00:29]} Bh6 {[%emt 0:00:56]} 26. g3 {[%emt 0:00:37]} a5 {[%emt 0:03:33]} 27. Nd2 {[%emt 0:00:22]} c3 {[%emt 0:01:52]} 28. Bxc3 {[%emt 0:00:20]} Nxc3 {[%emt 0:00:05]} 29. Rxc3 {[%emt 0:00:10]} Rxd4 {[%emt 0:00:07]} 30. f4 {[%emt 0:01:16]} b4 {[%emt 0:00:38]} 31. axb4 {[%emt 0:00:30]} axb4 {[%emt 0:00:07]} 32. Rc2 {[%emt 0:00:32]} Qd8 {[%emt 0:00:50]} 33. Bg2 {[%emt 0:00:27]} Bxg2 {[%emt 0:01:25]} 34. Qxg2 {[%emt 0:00:19]} Bg7 {[%emt 0:00:33]} 35. Nb3 {[%emt 0:00:39]} Rd3 {[%emt 0:00:25]} 36. Nc5 {[%emt 0:00:18]} Qb6 {[%emt 0:00:40]} 37. Qf2 {[%emt 0:00:42]} Rc3 {[%emt 0:00:19]} 38. Ne4 {[%emt 0:00:28]} Qxf2+ {[%emt 0:00:15]} 39. Rxf2 {[%emt 0:00:01]} Rc6 {[%emt 0:00:17]} 40. Rb1 {[%emt 0:00:00]} Rb8 {[%emt 0:00:00]} 41. Rb3 {[%emt 0:01:52]} Bf8 {[%emt 0:03:37]} 42. Rd2 {[%emt 0:00:51]} Rbc8 {[%emt 0:03:50]} 43. Kf2 {[%emt 0:01:03]} Rc2 {[%emt 0:05:43]} 44. Ke3 {[%emt 0:02:29]} Rxd2 {[%emt 0:00:13]} 45. Kxd2 {[%emt 0:00:33]} Ra8 {[%emt 0:01:19]} 46. Kd3 {[%emt 0:00:56]} Ra2 {[%emt 0:01:36]} 47. h4 {[%emt 0:00:37]} h5 {[%emt 0:00:10]} 48. Kc4 {[%emt 0:00:53]} Ra6 {[%emt 0:10:30]} 49. Rd3 {[%emt 0:10:53]} Rb6 {[%emt 0:02:45]} 50. Kb3 {[%emt 0:03:43]} Ra6 {[%emt 0:05:35]} 51. Kc4 {[%emt 0:08:24]} Rb6 {[%emt 0:00:08]} 52. Rb3 {[%emt 0:02:43]} Be7 {[%emt 0:00:35]} 53. Kd5 {[%emt 0:00:17]} Kf8 {[%emt 0:01:02]} 54. Nd6 {[%emt 0:00:34]} f6 {[%emt 0:01:05]} 55. Kc5 {[%emt 0:01:37]} Rb8 {[%emt 0:00:12]} 56. Kc6 {[%emt 0:01:03]} g5 {[%emt 0:00:40]} 57. hxg5 {[%emt 0:00:46]} fxe5 {[%emt 0:00:15]} 58. fxe5 {[%emt 0:00:47]} Bxg5 {[%emt 0:00:12]} 59. Kc7 {[%emt 0:00:23]} Ra8 {[%emt 0:00:17]} 60. Rxb4 {[%emt 0:00:07]} Ke7 {[%emt 0:01:01]} 61. Ne4 {[%emt 0:01:01]} Be3 {[%emt 0:00:22]} 62. Nf6 {[%emt 0:00:24]} Bf2 {[%emt 0:00:35]} 63. Nxh5 {[%emt 0:00:19]} Rh8 {[%emt 0:00:17]} 64. g4 {[%emt 0:00:16]} Ke6 {[%emt 0:00:26]} 65. Nf4+ {[%emt 0:00:10]} Kf7 {[%emt 0:00:44]} 66. Kd7 {[%emt 0:00:31]} Be1 {[%emt 0:00:58]} 67. Re4 {[%emt 0:00:15]} Bh4 {[%emt 0:00:29]} 68. e6+ {[%emt 0:01:31]} Kg7 {[%emt 0:00:14]} 69. e7 {[%emt 0:00:25]} 1-0

[Event "RUS-ch Girls U21 2021"]
[Site "Loo"]
[Date "2021.04.21"]
[Round "1.3"]
[White "Filippova, Darya"]
[Black "Afonasieva, Anna"]
[Result "0-1"]
[ECO "B15"]
[WhiteElo "1915"]
[BlackElo "2270"]
[Annotator "NA"]
[PlyCount "78"]
[EventDate "2021.04.21"]
[EventType "swiss"]
[EventCountry "RUS"]
[SourceTitle "playchess.com"]
[Source "ChessBase"]
[SourceQuality "1"]
[TimeControl "40/5400+30:1800+30"]

1. e4 {[%emt 0:00:00]} c6 {[%emt 0:00:00]} 2. d4 {[%emt 0:00:19]} d5 {[%emt 0:00:01]} 3. Nd2 {[%emt 0:00:34]} dxe4 {[%emt 0:00:27]} 4. Nxe4 {[%emt 0:00:11]} Nf6 {[%emt 0:00:35]} 5. Nxf6+ {[%emt 0:00:43]} exf6 {[%emt 0:00:04]} 6. c3 {[%emt 0:10:46]} Bd6 {[%emt 0:00:43]} 7. Bd3 {[%emt 0:05:39]} O-O {[%emt 0:00:56]} 8. Ne2 {[%emt 0:01:36]} Re8 {[%emt 0:00:36]} 9. Qc2 {[%emt 0:02:23]} h5 {[%emt 0:00:16]} 10. Be3 {[%emt 0:06:17]} Be6 {[%emt 0:03:52]} 11. Kf1 {[%emt 0:07:09]} Nd7 {[%emt 0:03:27]} 12. Ng3 {[%emt 0:05:44]} h4 {[%emt 0:01:50]} 13. Nf5 {[%emt 0:04:06]} Bxf5 {[%emt 0:01:25]} 14. Bxf5 {[%emt 0:00:11]} Nf8 {[%emt 0:00:15]} 15. g3 {[%emt 0:06:39]} g6 {[%emt 0:02:54]} 16. gxh4 {[%emt 0:16:10]} Qa5 {[%emt 0:07:27]} 17. Rg1 {[%emt 0:05:38]} Kh8 {[%emt 0:01:23]} 18. Bg4 {[%emt 0:03:41]} f5 {[%emt 0:03:10]} 19. Bf3 {[%emt 0:02:55]} f4 {[%emt 0:04:31]} 20. Bd2 {[%emt 0:01:07]} Ne6 {[%emt 0:05:43]} 21. h5 {[%emt 0:05:46]} gxh5 {[%emt 0:07:22]} 22. d5 Ng7 {[%emt 0:10:00]} 23. Kg2 {[%emt 0:04:48]} Qd8 {[%emt 0:05:17]} 24. dxc6 {[%emt 0:00:53]} bxc6 {[%emt 0:08:15]} 25. Kh1 {[%emt 0:00:20]} Qh4 {[%emt 0:00:51]} 26. Rg2 {[%emt 0:03:22]} Qh3 {[%emt 0:02:25]} 27. Qd3 {[%emt 0:00:02]} Rad8 {[%emt 0:00:40]} 28. Rag1 {[%emt 0:03:09]} Bf8 {[%emt 0:01:46]} 29. Qc4 {[%emt 0:00:56]} Qxf3 {[%emt 0:00:30]} 30. Qxf4 {[%emt 0:00:28]} Qxf4 {[%emt 0:01:30]} 31. Bxf4 {[%emt 0:00:03]} Kh7 {[%emt 0:00:36]} 32. Be3 {[%emt 0:00:10]} Ne6 {[%emt 0:02:15]} 33. Rg3 {[%emt 0:02:01]} Bh6 {[%emt 0:04:13]} 34. Rf3 {[%emt 0:01:01]} Re7 {[%emt 0:01:24]} 35. Bxh6 {[%emt 0:00:16]} Kxh6 {[%emt 0:00:03]} 36. c4 {[%emt 0:00:09]} Rd4 {[%emt 0:01:58]} 37. Rf6+ {[%emt 0:00:16]} Kh7 {[%emt 0:00:03]} 38. Rf5 {[%emt 0:00:17]} Ng7 {[%emt 0:01:04]} 39. Rc5 {[%emt 0:00:25]} Rd2 {[%emt 0:00:38]} 0-1

[Event "RUS-ch Girls U21 2021"]
[Site "Loo"]
[Date "2021.04.21"]
[Round "1.4"]
[White "Goltseva, Ekaterina"]
[Black "Pankova, Julia"]
[Result "1-0"]
[ECO "E06"]
[WhiteElo "2269"]
[BlackElo "1884"]
[Annotator "ChessBase"]
[PlyCount "149"]
[EventDate "2021.04.21"]
[EventType "swiss"]
[EventCountry "RUS"]
[SourceTitle "playchess.com"]
[Source "ChessBase"]
[SourceQuality "1"]
[TimeControl "40/5400+30:1800+30"]

1. d4 {[%emt 0:00:00]} Nf6 {[%emt 0:00:00]} 2. c4 {[%emt 0:00:00]} e6 {[%emt 0:00:00]} 3. g3 {[%emt 0:00:00]} d5 {[%emt 0:00:00]} 4. Nf3 {[%emt 0:00:00]} Be7 {[%emt 0:00:00]} 5. Bg2 {[%emt 0:00:01]} O-O {[%emt 0:00:01]} 6. Qc2 {[%emt 0:00:09]} Nc6 {[%emt 0:08:47]} 7. O-O {[%emt 0:08:44]} dxc4 {[%emt 0:09:21]} 8. Qxc4 {[%emt 0:01:06]} Qd5 {[%emt 0:02:10]} 9. b3 {[%emt 0:19:35]} Rd8 {[%emt 0:05:32]} 10. Bb2 {[%emt 0:04:27]} Qh5 {[%emt 0:16:38]} 11. Nbd2 {[%emt 0:07:46]} Bd7 {[%emt 0:18:11]} 12. e4 {[%emt 0:05:07]} Rac8 {[%emt 0:03:16]} 13. a3 {[%emt 0:10:53]} Nb8 {[%emt 0:09:27]} 14. Ne5 {[%emt 0:10:48]} c5 {[%emt 0:03:18]} 15. d5 {[%emt 0:07:33]} b5 {[%emt 0:04:53]} 16. Qc3 {[%emt 0:11:53]} exd5 {[%emt 0:06:26]} 17. Nxd7 {[%emt 0:03:30]} Nbxd7 {[%emt 0:01:29]} 18. exd5 {[%emt 0:00:05]} Bd6 {[%emt 0:03:18]} 19. Rfe1 {[%emt 0:03:06]} Re8 {[%emt 0:00:15]} 20. Ne4 {[%emt 0:01:23]} Be5 {[%emt 0:00:46]} 21. Nxf6+ {[%emt 0:00:27]} Bxf6 {[%emt 0:00:24]} 22. Qc2 {[%emt 0:00:11]} Ne5 {[%emt 0:03:28]} 23. Bxe5 {[%emt 0:03:11]} Bxe5 {[%emt 0:01:09]} 24. Rad1 {[%emt 0:00:12]} Bd6 {[%emt 0:01:53]} 25. Qd3 {[%emt 0:00:46]} c4 {[%emt 0:01:00]} 26. bxc4 {[%emt 0:00:27]} Rxe1+ {[%emt 0:00:34]} 27. Rxe1 {[%emt 0:00:03]} bxc4 {[%emt 0:00:05]} 28. Qc3 {[%emt 0:00:19]} Qg6 {[%emt 0:00:50]} 29. Bh3 {[%emt 0:01:11]} Rf8 {[%emt 0:00:44]} 30. Qxc4 {[%emt 0:00:40]} Bxa3 {[%emt 0:00:10]} 31. Qc7 {[%emt 0:01:18]} Qb6 {[%emt 0:00:48]} 32. Qc6 {[%emt 0:00:36]} Bc5 {[%emt 0:00:18]} 33. Re2 {[%emt 0:00:08]} h6 {[%emt 0:00:38]} 34. Kg2 {[%emt 0:00:17]} Bd6 {[%emt 0:00:37]} 35. Bf5 {[%emt 0:00:55]} g6 {[%emt 0:00:27]} 36. Bd7 {[%emt 0:00:31]} Kh7 {[%emt 0:00:31]} 37. Ra2 {[%emt 0:00:18]} Rd8 {[%emt 0:00:21]} 38. Ra6 {[%emt 0:00:32]} Qxc6 {[%emt 0:00:41]} 39. dxc6 {[%emt 0:00:04]} Ra8 {[%emt 0:00:27]} 40. Kf3 {[%emt 0:00:00]} Kg7 {[%emt 0:00:00]} 41. Ke4 {[%emt 0:01:09]} Kf8 {[%emt 0:04:11]} 42. f4 {[%emt 0:03:00]} Ke7 {[%emt 0:02:30]} 43. f5 {[%emt 0:02:23]} Bc7 {[%emt 0:01:27]} 44. Kd5 {[%emt 0:01:28]} Kf6 {[%emt 0:03:21]} 45. fxg6 {[%emt 0:05:42]} fxg6 {[%emt 0:00:58]} 46. Kc4 {[%emt 0:02:47]} Ke5 {[%emt 0:05:47]} 47. g4 {[%emt 0:08:55]} Ke4 {[%emt 0:04:34]} 48. h4 {[%emt 0:01:40]} Ke5 {[%emt 0:03:49]} 49. Ra1 {[%emt 0:04:16]} a5 {[%emt 0:03:43]} 50. Be8 {[%emt 0:01:49]} Kf4 {[%emt 0:03:51]} 51. Bxg6 {[%emt 0:00:55]} Kxg4 {[%emt 0:00:10]} 52. h5 {[%emt 0:00:52]} Rb8 {[%emt 0:01:47]} 53. Kd5 {[%emt 0:00:38]} Rd8+ {[%emt 0:00:30]} 54. Ke4 {[%emt 0:01:26]} Kg5 {[%emt 0:00:45]} 55. Rf1 {[%emt 0:01:22]} Rd6 {[%emt 0:00:40]} 56. Rg1+ {[%emt 0:00:49]} Kf6 {[%emt 0:00:29]} 57. Bf5 {[%emt 0:00:29]} Kf7 {[%emt 0:00:29]} 58. Bd7 {[%emt 0:00:22]} Rf6 {[%emt 0:00:32]} 59. Kd5 {[%emt 0:00:33]} Rd6+ {[%emt 0:00:26]} 60. Kc5 {[%emt 0:00:21]} Rf6 {[%emt 0:00:33]} 61. Rb1 {[%emt 0:00:35]} Ke7 {[%emt 0:00:29]} 62. Re1+ {[%emt 0:00:10]} Kf7 {[%emt 0:00:24]} 63. Be8+ {[%emt 0:00:20]} Kf8 {[%emt 0:00:15]} 64. Bg6 {[%emt 0:00:15]} Bd6+ {[%emt 0:00:55]} 65. Kd5 {[%emt 0:01:08]} a4 {[%emt 0:00:29]} 66. Re8+ {[%emt 0:00:41]} Kg7 {[%emt 0:00:05]} 67. c7 {[%emt 0:00:37]} Bxc7 {[%emt 0:00:54]} 68. Re7+ {[%emt 0:00:04]} Kg8 {[%emt 0:00:30]} 69. Rxc7 {[%emt 0:00:05]} Ra6 {[%emt 0:00:31]} 70. Ke5 {[%emt 0:00:47]} a3 {[%emt 0:00:27]} 71. Bf7+ {[%emt 0:00:26]} Kf8 {[%emt 0:00:31]} 72. Ba2 {[%emt 0:00:06]} Ra5+ {[%emt 0:00:32]} 73. Kf6 {[%emt 0:00:06]} Ra6+ {[%emt 0:00:11]} 74. Be6 {[%emt 0:00:08]} Ra8 {[%emt 0:00:18]} 75. Rh7 {[%emt 0:00:11]} 1-0

[Event "RUS-ch Girls U21 2021"]
[Site "Loo"]
[Date "2021.04.21"]
[Round "1.5"]
[White "Koroleva, Evgeniya"]
[Black "Grigorieva, Yulia"]
[Result "1/2-1/2"]
[ECO "E46"]
[WhiteElo "1884"]
[BlackElo "2236"]
[Annotator "ChessBase"]
[PlyCount "87"]
[EventDate "2021.04.21"]
[EventType "swiss"]
[EventCountry "RUS"]
[SourceTitle "playchess.com"]
[Source "ChessBase"]
[SourceQuality "1"]
[TimeControl "40/5400+30:1800+30"]

1. d4 {[%emt 0:00:00]} Nf6 {[%emt 0:00:00]} 2. c4 {[%emt 0:00:00]} e6 {[%emt 0:00:00]} 3. Nc3 {[%emt 0:00:00]} Bb4 {[%emt 0:00:00]} 4. e3 {[%emt 0:00:00]} O-O {[%emt 0:00:00]} 5. Nge2 {[%emt 0:00:00]} c6 {[%emt 0:00:17]} 6. a3 {[%emt 0:00:18]} Ba5 {[%emt 0:00:47]} 7. c5 {[%emt 0:25:45]} d5 {[%emt 0:05:13]} 8. cxd6 {[%emt 0:01:34]} Qxd6 {[%emt 0:00:14]} 9. b4 {[%emt 0:13:37]} Bc7 {[%emt 0:00:17]} 10. Bb2 {[%emt 0:00:07]} Nbd7 {[%emt 0:09:39]} 11. Ng3 {[%emt 0:04:06]} Nd5 {[%emt 0:03:52]} 12. Bd3 {[%emt 0:09:21]} N7f6 {[%emt 0:07:08]} 13. Rc1 {[%emt 0:04:05]} Rd8 {[%emt 0:07:30]} 14. Qe2 {[%emt 0:07:35]} Bd7 {[%emt 0:07:33]} 15. Nce4 {[%emt 0:14:05]} Qe7 {[%emt 0:07:22]} 16. Nc5 {[%emt 0:00:39]} Rab8 {[%emt 0:03:15]} 17. O-O {[%emt 0:04:39]} e5 {[%emt 0:13:44]} 18. dxe5 {[%emt 0:05:04]} Bxe5 {[%emt 0:00:23]} 19. Bxe5 {[%emt 0:00:05]} Qxe5 {[%emt 0:00:14]} 20. Qc2 {[%emt 0:02:39]} Bg4 {[%emt 0:07:45]} 21. Bf5 {[%emt 0:02:44]} g6 {[%emt 0:08:35]} 22. Bxg4 {[%emt 0:00:17]} Nxg4 {[%emt 0:00:02]} 23. Rfe1 {[%emt 0:04:07]} h5 {[%emt 0:08:54]} 24. Nf1 {[%emt 0:00:01]} Qe7 {[%emt 0:02:01]} 25. h3 {[%emt 0:00:26]} Ne5 {[%emt 0:01:20]} 26. Rcd1 {[%emt 0:00:46]} Nb6 {[%emt 0:02:50]} 27. Nd2 {[%emt 0:00:48]} Rd5 {[%emt 0:02:50]} 28. Nde4 {[%emt 0:00:01]} Rbd8 {[%emt 0:00:59]} 29. Rxd5 {[%emt 0:00:02]} cxd5 {[%emt 0:00:58]} 30. Nd2 {[%emt 0:00:50]} Nbc4 {[%emt 0:00:34]} 31. Qa2 {[%emt 0:01:09]} b6 {[%emt 0:00:32]} 32. Ncb3 {[%emt 0:00:02]} Nd3 {[%emt 0:00:31]} 33. Rf1 {[%emt 0:00:39]} Rc8 {[%emt 0:00:28]} 34. Nf3 {[%emt 0:00:36]} Nde5 {[%emt 0:00:35]} 35. Nxe5 {[%emt 0:00:25]} Qxe5 {[%emt 0:00:04]} 36. Rd1 {[%emt 0:00:14]} a5 {[%emt 0:00:51]} 37. b5 {[%emt 0:00:53]} a4 {[%emt 0:00:33]} 38. Nd4 {[%emt 0:00:12]} Qd6 {[%emt 0:00:30]} 39. Ra1 {[%emt 0:00:22]} Qc5 {[%emt 0:00:28]} 40. Kh2 {[%emt 0:00:00]} Qd6+ {[%emt 0:00:00]} 41. Kg1 {[%emt 0:01:30]} Qc5 {[%emt 0:06:28]} 42. Rc1 {[%emt 0:06:18]} Qe7 {[%emt 0:13:52]} 43. Nc6 {[%emt 0:06:05]} Qe4 {[%emt 0:04:45]} 44. Qc2 1/2-1/2

[Event "RUS-ch Girls U21 2021"]
[Site "Loo"]
[Date "2021.04.21"]
[Round "1.6"]
[White "Sakorenko, Adriana"]
[Black "Gelman, Inna"]
[Result "1-0"]
[ECO "A05"]
[WhiteElo "2216"]
[BlackElo "1801"]
[Annotator "NA"]
[PlyCount "65"]
[EventDate "2021.04.21"]
[EventType "swiss"]
[EventCountry "RUS"]
[SourceTitle "playchess.com"]
[Source "ChessBase"]
[SourceQuality "1"]
[TimeControl "40/5400+30:1800+30"]

1. Nf3 {[%emt 0:00:00]} Nf6 {[%emt 0:00:00]} 2. b3 {[%emt 0:00:00]} c5 {[%emt 0:00:00]} 3. Bb2 {[%emt 0:00:00]} Nc6 {[%emt 0:00:00]} 4. e3 {[%emt 0:00:04]} d5 {[%emt 0:00:21]} 5. Be2 {[%emt 0:00:41]} e6 {[%emt 0:01:13]} 6. O-O {[%emt 0:00:23]} Be7 {[%emt 0:00:19]} 7. d4 {[%emt 0:00:42]} O-O {[%emt 0:03:50]} 8. c4 {[%emt 0:00:43]} b6 {[%emt 0:03:08]} 9. Ne5 {[%emt 0:07:53]} Bb7 {[%emt 0:01:26]} 10. Nxc6 {[%emt 0:02:30]} Bxc6 {[%emt 0:00:08]} 11. dxc5 {[%emt 0:01:26]} Bxc5 {[%emt 0:06:05]} 12. Nd2 {[%emt 0:03:41]} Qe7 {[%emt 0:08:05]} 13. a3 {[%emt 0:04:52]} a5 {[%emt 0:00:24]} 14. Bf3 {[%emt 0:01:21]} Rfd8 {[%emt 0:01:40]} 15. Qe2 {[%emt 0:04:18]} Rac8 {[%emt 0:01:10]} 16. cxd5 {[%emt 0:03:00]} Bxd5 {[%emt 0:08:48]} 17. Bxd5 {[%emt 0:03:06]} Rxd5 {[%emt 0:07:58]} 18. e4 {[%emt 0:04:31]} Rg5 {[%emt 0:02:10]} 19. Rac1 {[%emt 0:15:05]} Rd8 {[%emt 0:05:13]} 20. Nc4 {[%emt 0:02:15]} Nh5 {[%emt 0:26:18]} 21. Qf3 {[%emt 0:06:13]} e5 {[%emt 0:01:53]} 22. h4 {[%emt 0:07:36]} Rd3 {[%emt 0:02:10]} 23. Ne3 {[%emt 0:01:31]} Rxg2+ {[%emt 0:16:06]} 24. Qxg2 {[%emt 0:05:25]} Nf4 {[%emt 0:00:46]} 25. Qh2 {[%emt 0:03:27]} Ne2+ {[%emt 0:01:50]} 26. Kh1 {[%emt 0:00:20]} Nxc1 {[%emt 0:00:39]} 27. Rxc1 {[%emt 0:04:01]} f6 {[%emt 0:00:25]} 28. Rd1 {[%emt 0:05:34]} Rxb3 {[%emt 0:00:30]} 29. Qh3 {[%emt 0:00:18]} h6 {[%emt 0:01:12]} 30. Qc8+ {[%emt 0:01:35]} Kh7 {[%emt 0:00:18]} 31. Rd7 {[%emt 0:00:17]} Qf8 {[%emt 0:00:11]} 32. Rd8 {[%emt 0:00:58]} Qe7 {[%emt 0:01:07]} 33. h5 {[%emt 0:00:33]} 1-0

[Event "RUS-ch Girls U21 2021"]
[Site "Loo"]
[Date "2021.04.21"]
[Round "1.7"]
[White "Emelyanova, Victoria"]
[Black "Nosacheva, Mariya"]
[Result "0-1"]
[ECO "E73"]
[WhiteElo "1765"]
[BlackElo "2199"]
[Annotator "NA"]
[PlyCount "62"]
[EventDate "2021.04.21"]
[EventType "swiss"]
[EventCountry "RUS"]
[SourceTitle "playchess.com"]
[Source "ChessBase"]
[SourceQuality "1"]
[TimeControl "40/5400+30:1800+30"]

1. d4 {[%emt 0:00:00]} Nf6 {[%emt 0:00:00]} 2. c4 {[%emt 0:00:00]} g6 {[%emt 0:00:00]} 3. Nc3 {[%emt 0:00:00]} Bg7 {[%emt 0:00:00]} 4. e4 {[%emt 0:00:16]} d6 {[%emt 0:00:00]} 5. Be2 {[%emt 0:00:06]} O-O {[%emt 0:00:07]} 6. Bg5 {[%emt 0:00:06]} h6 {[%emt 0:01:26]} 7. Be3 {[%emt 0:00:04]} Na6 {[%emt 0:00:11]} 8. Qd2 {[%emt 0:04:17]} Kh7 {[%emt 0:00:25]} 9. f3 {[%emt 0:02:03]} c5 {[%emt 0:00:29]} 10. h4 {[%emt 0:04:24]} cxd4 {[%emt 0:06:56]} 11. Bxd4 {[%emt 0:00:45]} Be6 {[%emt 0:12:41]} 12. g4 {[%emt 0:14:46]} Rc8 {[%emt 0:11:26]} 13. g5 {[%emt 0:10:12]} Nh5 {[%emt 0:04:39]} 14. Bxg7 {[%emt 0:04:21]} Kxg7 {[%emt 0:01:57]} 15. gxh6+ {[%emt 0:12:35]} Kh7 {[%emt 0:00:54]} 16. f4 {[%emt 0:29:43]} Ng3 {[%emt 0:06:11]} 17. Qd4 {[%emt 0:03:48]} f6 {[%emt 0:02:30]} 18. Nh3 {[%emt 0:06:17]} Rg8 {[%emt 0:01:28]} 19. Rh2 {[%emt 0:04:38]} Nxe2 {[%emt 0:00:54]} 20. Kxe2 {[%emt 0:00:45]} Rxc4 {[%emt 0:00:53]} 21. Qd2 {[%emt 0:00:33]} b5 {[%emt 0:05:54]} 22. Nf2 {[%emt 0:00:41]} b4 {[%emt 0:04:52]} 23. Nd5 {[%emt 0:00:29]} Nc5 {[%emt 0:01:57]} 24. Kf3 {[%emt 0:00:36]} Qa8 {[%emt 0:03:33]} 25. b3 {[%emt 0:00:28]} Rxe4 {[%emt 0:01:36]} 26. Nc7 {[%emt 0:00:32]} Qc6 {[%emt 0:04:22]} 27. Nxe4 {[%emt 0:00:24]} Nxe4 {[%emt 0:00:11]} 28. Qe3 {[%emt 0:00:27]} Nc5+ {[%emt 0:00:07]} 29. Ke2 {[%emt 0:00:38]} Qxc7 {[%emt 0:00:09]} 30. Rc1 {[%emt 0:00:16]} Qb7 {[%emt 0:01:12]} 31. Rxc5 {[%emt 0:00:44]} Bg4+ {[%emt 0:00:07]} 0-1

[Event "RUS-ch Girls U21 2021"]
[Site "Loo"]
[Date "2021.04.21"]
[Round "1.8"]
[White "Zotova, Anastasia"]
[Black "Bogdanova, Darya"]
[Result "0-1"]
[ECO "B18"]
[WhiteElo "2160"]
[BlackElo "1762"]
[Annotator "NA"]
[PlyCount "58"]
[EventDate "2021.04.21"]
[EventType "swiss"]
[EventCountry "RUS"]
[SourceTitle "playchess.com"]
[Source "ChessBase"]
[SourceQuality "1"]
[TimeControl "40/5400+30:1800+30"]

1. e4 {[%emt 0:00:00]} c6 {[%emt 0:00:00]} 2. d4 {[%emt 0:00:00]} d5 {[%emt 0:00:00]} 3. Nc3 {[%emt 0:00:00]} dxe4 {[%emt 0:00:00]} 4. Nxe4 {[%emt 0:00:00]} Bf5 {[%emt 0:00:04]} 5. Ng3 {[%emt 0:00:00]} Bg6 {[%emt 0:00:07]} 6. h4 {[%emt 0:00:04]} h6 {[%emt 0:00:09]} 7. Nf3 {[%emt 0:00:05]} e6 {[%emt 0:00:14]} 8. h5 {[%emt 0:01:08]} Bh7 {[%emt 0:00:12]} 9. Bd3 {[%emt 0:00:09]} Bxd3 {[%emt 0:00:18]} 10. Qxd3 {[%emt 0:00:06]} Nf6 {[%emt 0:00:57]} 11. Bd2 {[%emt 0:00:29]} c5 {[%emt 0:01:15]} 12. O-O-O {[%emt 0:03:44]} Nc6 {[%emt 0:01:32]} 13. Bc3 {[%emt 0:06:55]} Qd5 {[%emt 0:09:24]} 14. Qb5 {[%emt 0:16:38]} O-O-O {[%emt 0:26:17]} 15. dxc5 {[%emt 0:09:22]} Qxa2 {[%emt 0:12:28]} 16. Rxd8+ {[%emt 0:03:09]} Nxd8 {[%emt 0:00:07]} 17. Ne5 {[%emt 0:00:47]} a6 {[%emt 0:01:58]} 18. Qb4 {[%emt 0:09:15]} Nd5 {[%emt 0:02:07]} 19. Qd4 {[%emt 0:00:21]} Be7 {[%emt 0:02:25]} 20. f4 {[%emt 0:07:25]} Bf6 {[%emt 0:17:04]} 21. Re1 {[%emt 0:13:01]} Nc6 {[%emt 0:01:11]} 22. Qd3 {[%emt 0:01:14]} Nxe5 {[%emt 0:05:34]} 23. Rxe5 {[%emt 0:07:35]} Nxc3 {[%emt 0:03:26]} 24. Qxc3 {[%emt 0:00:47]} Bxe5 {[%emt 0:01:15]} 25. fxe5 {[%emt 0:01:17]} Qa1+ {[%emt 0:01:11]} 26. Kd2 {[%emt 0:00:07]} Rd8+ {[%emt 0:00:03]} 27. Ke3 {[%emt 0:00:33]} Qc1+ {[%emt 0:00:34]} 28. Kf3 {[%emt 0:00:10]} Qd2 {[%emt 0:02:57]} 29. Qb3 {[%emt 0:02:43]} Qd5+ {[%emt 0:01:35]} 0-1